bitfinex/quotes_BTCUSD_20250513
["timestamp","ask_amount","ask_price","bid_price","bid_amount"]
[1747136741824,0.11675355,103840.0,103830.0,0.31863739]
[1747136741969,0.10953113,103840.0,103830.0,0.32826786]
[1747136742173,0.09990103,103840.0,103830.0,0.32826786]
[1747136742380,0.10953104,103840.0,103830.0,0.32826786]
[1747136742581,0.11916114,103840.0,103830.0,0.32826786]
[1747136742783,0.38981508,103840.0,103830.0,0.20640172]
[1747136743013,0.39417136,103840.0,103830.0,0.22566368]
[1747136743367,0.39417136,103840.0,103830.0,0.21603284]
[1747136743550,0.40318999,103840.0,103830.0,0.02341029]
[1747136743746,0.40318999,103840.0,103830.0,0.01377917]
[1747136748659,0.39355989,103840.0,103830.0,0.01377917]
[1747136748846,0.39355989,103840.0,103830.0,0.36715217]
[1747136749053,0.39355989,103840.0,103830.0,0.01377917]
[1747136749252,0.02889216,103830.0,103820.0,0.60442347]
[1747136749615,0.02889216,103830.0,103820.0,0.44367302]
[1747136749924,0.07017435,103830.0,103820.0,0.44367302]
[1747136750134,0.07017435,103830.0,103820.0,0.62368738]
[1747136750135,0.03852319,103830.0,103820.0,0.62368738]
[1747136750355,0.03852319,103830.0,103820.0,1.02368738]
[1747136750563,0.02889225,103830.0,103820.0,0.81496738]
[1747136750770,0.00963047,103830.0,103820.0,1.398717]
[1747136751003,0.01926131,103830.0,103820.0,1.398717]
[1747136751440,0.01926131,103830.0,103820.0,1.06758488]
[1747136751697,0.06295057,103830.0,103820.0,1.22833533]
[1747136751913,0.03852226,103830.0,103820.0,1.18419991]
[1747136752100,0.0481532,103830.0,103820.0,1.1938315]
[1747136752573,0.0481532,103830.0,103820.0,1.20346327]
[1747136752756,0.0481532,103830.0,103820.0,1.04271282]
[1747136752980,0.0481532,103830.0,103820.0,1.0545808]
[1747136753214,0.0481532,103830.0,103820.0,0.6315808]
[1747136753434,0.0481532,103830.0,103820.0,1.21529125]
[1747136753848,0.04815385,103830.0,103820.0,1.21529125]
[1747136754033,0.24077705,103830.0,103820.0,1.21529125]
[1747136754898,0.28819034,103830.0,103820.0,1.04972889]
[1747136755128,0.28819034,103830.0,103820.0,0.81047934]
[1747136756060,0.23114648,103830.0,103820.0,0.82011083]
[1747136757236,0.22151536,103830.0,103820.0,0.82011083]
[1747136757474,0.22151536,103830.0,103820.0,0.81047934]
[1747136757715,0.22151536,103830.0,103820.0,0.64972889]
[1747136757902,0.22151536,103830.0,103820.0,0.81047934]
[1747136759099,0.22151536,103830.0,103820.0,0.98016706]
[1747136759307,0.22151536,103830.0,103820.0,1.17280461]
[1747136759903,0.22151536,103830.0,103820.0,1.1824362]
[1747136760131,0.22151536,103830.0,103820.0,1.19206797]
[1747136760303,0.23114648,103830.0,103820.0,0.98187491]
[1747136760505,0.23114648,103830.0,103820.0,1.19359491]
[1747136760923,0.03852393,103830.0,103820.0,1.19359491]
[1747136761246,0.23114648,103830.0,103820.0,1.19359491]
[1747136761475,0.03852393,103830.0,103820.0,1.19359491]
[1747136761677,0.23114648,103830.0,103820.0,1.20959491]
[1747136761907,0.23114648,103830.0,103820.0,1.19359491]
[1747136762135,0.23114648,103830.0,103820.0,1.2185264]
[1747136762342,0.23114648,103830.0,103820.0,1.20889491]
[1747136762543,0.01926178,103830.0,103820.0,1.23372631]
[1747136762749,0.22151536,103830.0,103820.0,1.23372631]
[1747136763245,0.28626364,103830.0,103820.0,1.03284446]
[1747136763447,0.2766328,103830.0,103820.0,1.19359491]
[1747136764087,0.22151564,103830.0,103820.0,1.19359491]
[1747136764860,0.22151564,103830.0,103820.0,0.80358633]
[1747136765446,0.21188452,103830.0,103820.0,0.68336737]
[1747136765657,0.21188452,103830.0,103820.0,1.20358633]
[1747136766302,0.20185146,103840.0,103830.0,0.23315367]
[1747136766568,0.03527025,103840.0,103830.0,0.42279637]
[1747136766731,0.23750492,103840.0,103830.0,0.41179678]
[1747136766975,0.23750492,103840.0,103830.0,0.82142772]
[1747136767172,0.22848697,103840.0,103830.0,0.79052772]
[1747136767369,0.21885724,103840.0,103830.0,0.40015856]
[1747136767573,0.26190096,103840.0,103830.0,0.23940811]
[1747136767825,0.26767104,103840.0,103830.0,0.62977727]
[1747136768050,0.25904084,103840.0,103830.0,0.6105153]
[1747136768243,0.27404084,103840.0,103830.0,0.62014633]
[1747136768474,0.27504084,103840.0,103830.0,0.22014633]
[1747136768948,0.27504084,103840.0,103830.0,0.62014633]
[1747136769202,0.27504084,103840.0,103830.0,0.40826163]
[1747136770441,0.27504084,103840.0,103830.0,0.00826163]
[1747136771562,0.53310069,103840.0,103830.0,0.00826163]
[1747136771793,0.37235024,103840.0,103830.0,0.00826163]
[1747136772204,0.38137104,103840.0,103830.0,0.00826163]
[1747136774632,0.54212149,103840.0,103830.0,0.00826163]
[1747136775054,0.23116763,103820.0,103810.0,1.1725164]
[1747136775279,0.27659829,103820.0,103810.0,2.00027285]
[1747136775495,0.27659829,103820.0,103810.0,2.00027303]
[1747136775702,0.26696707,103820.0,103810.0,1.99264373]
[1747136776079,0.26696707,103820.0,103810.0,1.90128573]
[1747136776276,0.25733558,103820.0,103810.0,1.89465303]
[1747136776477,0.27313558,103820.0,103810.0,1.32663424]
[1747136776755,0.27313558,103820.0,103810.0,2.00880885]
[1747136776964,0.25733558,103820.0,103810.0,2.00880885]
[1747136777148,0.25733558,103820.0,103810.0,2.00117624]
[1747136777373,0.26350381,103820.0,103810.0,1.56690905]
[1747136777579,0.26350381,103820.0,103810.0,1.33826666]
[1747136777758,0.26350381,103820.0,103810.0,1.33526666]
[1747136777993,0.24770381,103820.0,103810.0,1.35105572]
[1747136778197,0.26696671,103820.0,103810.0,1.59717166]
[1747136778374,0.26696671,103820.0,103810.0,1.44705372]
[1747136778579,0.25733549,103820.0,103810.0,1.60752053]
[1747136778727,0.25733549,103820.0,103810.0,1.61715304]
[1747136779124,0.25733549,103820.0,103810.0,1.60752053]
[1747136779451,0.26696698,103820.0,103810.0,1.61715304]
[1747136779628,0.27659903,103820.0,103810.0,1.61715304]
[1747136780133,0.03852727,103820.0,103810.0,3.62393046]
[1747136780405,0.23116837,103820.0,103810.0,3.62393046]
[1747136781155,0.23116837,103820.0,103810.0,3.41297046]
[1747136781390,0.23793632,103820.0,103810.0,0.94711503]
[1747136781543,0.23793632,103820.0,103810.0,0.93748242]
[1747136781743,0.28254385,103820.0,103810.0,0.54711521]
[1747136781967,0.27291236,103820.0,103810.0,0.55674791]
[1747136782188,0.27291236,103820.0,103810.0,0.56638052]
[1747136784076,0.27291236,103820.0,103810.0,0.72713097]
[1747136784481,0.27291236,103820.0,103810.0,1.35522297]
[1747136784689,0.27291236,103820.0,103810.0,1.27447297]
[1747136785683,0.27291236,103820.0,103810.0,0.92031897]
[1747136786095,0.28871236,103820.0,103810.0,0.92031897]
[1747136786299,0.28871236,103820.0,103810.0,1.32031897]
[1747136786964,0.28871236,103820.0,103810.0,0.92031897]
[1747136787644,0.27908059,103820.0,103810.0,0.52837787]
[1747136787851,0.27908059,103820.0,103810.0,1.27549887]
[1747136788062,0.27908059,103820.0,103810.0,1.11474842]
[1747136788273,0.27908059,103820.0,103810.0,1.01065966]
[1747136788507,0.27908059,103820.0,103810.0,1.06423766]
[1747136788868,0.27908059,103820.0,103810.0,1.00853936]
[1747136789084,0.27908059,103820.0,103810.0,0.98975436]
[1747136789292,0.27908059,103820.0,103810.0,0.72045566]
[1747136789527,0.23447306,103820.0,103810.0,0.73001533]
[1747136790141,0.23447306,103820.0,103810.0,0.72038272]
[1747136790497,0.23447306,103820.0,103810.0,0.73964803]
[1747136790940,0.23447306,103820.0,103810.0,0.38275953]
[1747136791139,0.23447306,103820.0,103810.0,0.5396518]
[1747136791344,0.05146354,103820.0,103810.0,1.21838764]
[1747136791541,0.07313517,103820.0,103810.0,1.21838764]
[1747136791748,0.26577627,103820.0,103810.0,1.20875531]
[1747136791956,0.26336809,103820.0,103810.0,1.20875531]
[1747136792362,0.26336809,103820.0,103810.0,0.61378631]
[1747136793045,0.25373669,103820.0,103810.0,0.61378631]
[1747136793470,0.25373669,103820.0,103810.0,0.59849631]
[1747136793899,0.25373669,103820.0,103810.0,0.58462631]
[1747136794123,0.25373669,103820.0,103810.0,0.56752631]
[1747136794365,0.29837425,103820.0,103810.0,0.56752631]
[1747136794916,0.29837425,103820.0,103810.0,0.57715873]
[1747136795327,0.28257425,103820.0,103810.0,0.57715873]
[1747136795531,0.26617425,103820.0,103810.0,0.57715817]
[1747136795730,0.01926299,103820.0,103810.0,0.57715817]
[1747136795931,0.02889485,103820.0,103810.0,0.57715817]
[1747136798271,0.03130298,103820.0,103810.0,0.57715817]
[1747136799564,0.04093494,103820.0,103810.0,0.57715817]
[1747136799915,0.23357604,103820.0,103810.0,0.57715817]
[1747136800122,0.27796252,103820.0,103810.0,0.57715817]
[1747136800324,0.27796252,103820.0,103810.0,0.81669917]
[1747136801338,0.29436252,103820.0,103810.0,0.81669917]
[1747136801538,0.29436252,103820.0,103810.0,0.40022717]
[1747136801756,0.29436252,103820.0,103810.0,0.81883917]
[1747136802219,0.29436252,103820.0,103810.0,0.80920684]
[1747136803239,0.08532142,103820.0,103810.0,0.82470684]
[1747136803455,0.00963122,103820.0,103810.0,0.79957341]
[1747136803666,0.03566434,103820.0,103810.0,1.04069341]
[1747136803872,0.03566397,103820.0,103810.0,1.04069341]
[1747136804074,0.05492742,103820.0,103810.0,1.04069341]
[1747136804297,0.04815756,103820.0,103810.0,1.02519341]
[1747136805478,0.04815756,103820.0,103810.0,1.00989341]
[1747136806403,0.0385257,103820.0,103810.0,1.00989341]
[1747136806611,0.04815811,103820.0,103810.0,1.04109341]
[1747136806812,0.04815811,103820.0,103810.0,1.02609341]
[1747136806961,0.04815811,103820.0,103810.0,1.00989341]
[1747136808340,0.04815811,103820.0,103810.0,0.79957341]
[1747136809655,0.04815867,103820.0,103810.0,0.79957341]
[1747136810025,0.07542843,103820.0,103810.0,0.79957341]
[1747136810524,0.03852671,103820.0,103810.0,0.79957341]
[1747136812656,0.04815867,103820.0,103810.0,1.25799141]
[1747136815011,0.04815867,103820.0,103810.0,1.23884641]
[1747136817595,0.04815867,103820.0,103810.0,1.44916641]
[1747136817767,0.24079977,103820.0,103810.0,1.44916641]
[1747136817977,0.28733364,103820.0,103810.0,1.25951897]
[1747136818195,0.28357056,103820.0,103810.0,0.95436761]
[1747136818404,0.28357056,103820.0,103810.0,0.96400059]
[1747136818911,0.29967056,103820.0,103810.0,0.97363301]
[1747136819652,0.29967056,103820.0,103810.0,0.77988801]
[1747136819852,0.29967056,103820.0,103810.0,0.73150101]
[1747136820087,0.29967056,103820.0,103810.0,0.61054801]
[1747136820287,0.29967056,103820.0,103810.0,0.93179801]
[1747136820516,0.30644294,103820.0,103810.0,0.93179801]
[1747136820743,0.30644294,103820.0,103810.0,0.72147801]
[1747136820944,0.30644294,103820.0,103810.0,0.50384101]
[1747136821345,0.12343389,103820.0,103810.0,0.40022801]
[1747136821577,0.31607499,103820.0,103810.0,0.74096736]
[1747136822110,0.31607499,103820.0,103810.0,0.40022736]
[1747136822340,0.31607499,103820.0,103810.0,0.74085036]
[1747136822917,0.31607499,103820.0,103810.0,0.40022736]
[1747136823244,0.31607499,103820.0,103810.0,0.58009991]
[1747136823459,0.31607499,103820.0,103810.0,0.40022736]
[1747136825402,0.30644322,103820.0,103810.0,0.3713301]
[1747136825610,0.29681136,103820.0,103810.0,0.36169731]
[1747136825829,0.29681136,103820.0,103810.0,0.00783588]
[1747136826029,0.39412076,103820.0,103810.0,0.00783588]
[1747136827392,0.39512076,103820.0,103810.0,0.00783588]
[1747136827779,0.39612076,103820.0,103810.0,0.00783588]
[1747136830953,0.56709089,103820.0,103810.0,0.00783588]
[1747136831367,0.40634044,103820.0,103810.0,0.00783588]
[1747136831793,0.40534044,103820.0,103810.0,0.00783588]
[1747136831999,0.40734044,103820.0,103810.0,0.00783588]
[1747136832310,0.40634044,103820.0,103810.0,0.00783588]
[1747136832526,0.40834044,103820.0,103810.0,0.00783588]
[1747136834814,0.39812076,103820.0,103810.0,0.00783588]
[1747136836682,0.40849907,103820.0,103810.0,0.00783588]
[1747136836951,0.60748076,103820.0,103810.0,0.00783588]
[1747136848501,0.76823121,103820.0,103810.0,0.00783588]
[1747136849317,0.60748076,103820.0,103810.0,0.00783588]
[1747136852355,0.76823121,103820.0,103810.0,0.00783588]
[1747136853936,0.60748076,103820.0,103810.0,0.00783588]
[1747136856601,0.76823121,103820.0,103810.0,0.00783588]
[1747136858887,1.10823121,103820.0,103810.0,0.00783588]
[1747136859106,1.30352251,103820.0,103810.0,0.00783588]
[1747136859519,1.33057941,103820.0,103810.0,0.00783588]
[1747136860618,1.32857941,103820.0,103810.0,0.00783588]
[1747136861059,1.33157941,103820.0,103810.0,0.00783588]
[1747136861486,1.32957941,103820.0,103810.0,0.00783588]
[1747136861665,1.33257941,103820.0,103810.0,0.00783588]
[1747136864526,1.01107851,103820.0,103810.0,0.00783588]
[1747136864743,1.33257941,103820.0,103810.0,0.00783588]
[1747136866296,1.01107851,103820.0,103810.0,0.00783588]
[1747136866503,1.33257941,103820.0,103810.0,0.00783588]
[1747136868121,1.32257941,103820.0,103810.0,0.00783588]
[1747136868940,1.31957941,103820.0,103810.0,0.00783588]
[1747136869442,1.32457941,103820.0,103810.0,0.00783588]
[1747136869867,1.48232986,103820.0,103810.0,0.00783588]
[1747136870082,1.47232986,103820.0,103810.0,0.00783588]
[1747136870293,1.47632986,103820.0,103810.0,0.00783588]
[1747136870511,1.31557941,103820.0,103810.0,0.00783588]
[1747136870949,1.31157941,103820.0,103810.0,0.00783588]
[1747136871174,1.47232986,103820.0,103810.0,0.00783588]
[1747136871402,1.31157941,103820.0,103810.0,0.00783588]
[1747136871602,1.30657941,103820.0,103810.0,0.00783588]
[1747136871784,1.31657941,103820.0,103810.0,0.00783588]
[1747136872205,1.31157941,103820.0,103810.0,0.00783588]
[1747136872624,1.32257941,103820.0,103810.0,0.00883588]
[1747136873054,1.31757941,103820.0,103810.0,0.00883588]
[1747136873197,1.33057941,103820.0,103810.0,0.00983588]
[1747136873665,0.79517766,103820.0,103810.0,0.00983588]
[1747136873883,1.36332811,103820.0,103810.0,0.00983588]
[1747136874079,1.53407856,103820.0,103810.0,0.00983588]
[1747136874288,1.52403856,103820.0,103810.0,0.00983588]
[1747136875298,1.10667856,103820.0,103810.0,0.00983588]
[1747136875495,1.52403856,103820.0,103810.0,0.00983588]
[1747136875912,1.52399856,103820.0,103810.0,0.00983588]
[1747136876493,1.10667856,103820.0,103810.0,0.00983588]
[1747136876956,1.52399856,103820.0,103810.0,0.00983588]
[1747136878011,1.52399856,103820.0,103810.0,0.00955186]
[1747136879358,1.52391856,103820.0,103810.0,0.00955186]
[1747136888244,1.20241766,103820.0,103810.0,0.00955186]
[1747136888493,1.52391856,103820.0,103810.0,0.00955186]
[1747136891477,1.52991856,103820.0,103810.0,0.00955186]
[1747136900300,1.52991856,103820.0,103770.0,0.24100194]
[1747136900301,0.21198632,103780.0,103770.0,0.24100194]
[1747136900526,0.20235111,103780.0,103770.0,0.24100194]
[1747136900971,0.20912349,103780.0,103770.0,0.24100194]
[1747136901415,0.24930721,103780.0,103770.0,0.24091342]
[1747136901627,0.19948773,103780.0,103770.0,0.23153202]
[1747136901815,0.19948773,103780.0,103770.0,0.23253202]
[1747136901984,0.20048773,103780.0,103770.0,0.16200565]
[1747136902187,0.20048773,103780.0,103770.0,0.35473958]
[1747136902589,0.20048773,103780.0,103770.0,0.16200565]
[1747136903011,0.20048773,103780.0,103770.0,0.36529895]
[1747136903184,0.20048773,103780.0,103770.0,0.36437627]
[1747136903385,0.20048773,103780.0,103770.0,0.39488785]
[1747136903733,0.20048773,103780.0,103770.0,0.20215392]
[1747136904377,0.23980788,103780.0,103770.0,0.39488785]
[1747136904611,0.20048773,103780.0,103770.0,0.39488785]
[1747136904791,0.20048773,103780.0,103770.0,0.20215392]
[1747136905373,0.20048773,103780.0,103770.0,0.04149189]
[1747136905578,0.20048773,103780.0,103770.0,0.20224234]
[1747136906797,0.20048773,103780.0,103770.0,0.0318552]
[1747136907026,0.23980788,103780.0,103770.0,0.0318552]
[1747136907282,0.23980788,103780.0,103770.0,0.19260565]
[1747136907736,0.21012294,103780.0,103770.0,0.39589913]
[1747136907956,0.2197587,103780.0,103770.0,0.40461278]
[1747136908176,0.21012349,103780.0,103770.0,0.39497627]
[1747136908397,0.21012349,103780.0,103770.0,0.23422582]
[1747136908645,0.21012349,103780.0,103770.0,0.20224234]
[1747136908846,0.25040721,103780.0,103770.0,0.20224234]
[1747136909530,0.25040721,103780.0,103770.0,0.19260565]
[1747136910563,0.21012349,103780.0,103770.0,0.19260565]
[1747136911916,0.21012349,103780.0,103770.0,0.19352832]
[1747136914375,0.21012349,103780.0,103770.0,0.40088832]
[1747136914644,0.21012349,103780.0,103770.0,1.00233618]
[1747136915481,0.21012349,103780.0,103770.0,1.01197269]
[1747136917091,0.21012349,103780.0,103770.0,0.84158573]
[1747136917307,0.21012349,103780.0,103770.0,1.00233618]
[1747136918254,0.21012349,103780.0,103770.0,0.6392152]
[1747136918473,0.20048773,103780.0,103770.0,0.79996565]
[1747136918691,0.20048773,103780.0,103770.0,0.80960234]
[1747136921035,0.20048773,103780.0,103770.0,0.79996565]
[1747136921288,0.20048773,103780.0,103770.0,0.39996565]
[1747136921910,0.20048773,103780.0,103770.0,0.59269958]
[1747136923378,0.20048773,103780.0,103770.0,0.43194913]
[1747136923619,0.20048773,103780.0,103770.0,0.79993958]
[1747136925991,0.20048773,103780.0,103770.0,0.60720565]
[1747136926600,0.00777238,103780.0,103770.0,0.79993958]
[1747136926848,0.00777238,103780.0,103770.0,3.49326724]
[1747136927254,0.00777238,103780.0,103770.0,4.05501769]
[1747136927476,0.00777238,103780.0,103770.0,3.89426724]
[1747136927477,0.001,103780.0,103770.0,3.89426724]
[1747136927641,0.001,103780.0,103770.0,3.89326724]
[1747136927821,0.0385333,103800.0,103790.0,0.60804102]
[1747136928027,0.0385333,103800.0,103790.0,2.33405247]
[1747136928500,0.04816711,103800.0,103790.0,2.73405247]
[1747136928711,0.04816711,103800.0,103790.0,2.09113447]
[1747136928925,0.2215791,103800.0,103790.0,1.98940483]
[1747136929153,0.2215791,103800.0,103790.0,1.27217238]
[1747136929364,0.21194566,103800.0,103790.0,1.44455748]
[1747136929583,0.24683745,103800.0,103790.0,1.0573]
[1747136929792,0.21194566,103800.0,103790.0,1.37884724]
[1747136930005,0.21194566,103800.0,103790.0,1.38848198]
[1747136930196,0.21194566,103800.0,103790.0,1.40458198]
[1747136930431,0.21194566,103800.0,103790.0,1.41421663]
[1747136930688,0.21194566,103800.0,103790.0,0.97907045]
[1747136930936,0.20231203,103800.0,103790.0,1.39331045]
[1747136931439,0.20231203,103800.0,103790.0,1.39431045]
[1747136932515,0.20231203,103800.0,103790.0,1.58700724]
[1747136933511,0.20231203,103800.0,103790.0,1.59664207]
[1747136935838,0.20231203,103800.0,103790.0,1.39431045]
[1747136936736,0.20231203,103800.0,103790.0,1.34387449]
[1747136937149,0.20231203,103800.0,103790.0,1.35350923]
[1747136939636,0.20231203,103800.0,103790.0,1.39564369]
[1747136939870,0.20231203,103800.0,103790.0,1.39564388]
[1747136940299,0.20231203,103800.0,103790.0,1.40527844]
[1747136940861,0.20231203,103800.0,103790.0,1.39564388]
[1747136941118,0.20231203,103800.0,103790.0,0.98140388]
[1747136941302,0.20231203,103800.0,103790.0,1.36286388]
[1747136945316,0.19267822,103800.0,103790.0,1.34359449]
[1747136945513,0.19267822,103800.0,103790.0,1.35322923]
[1747136945761,0.19267822,103800.0,103790.0,0.78004198]
[1747136946691,0.19267822,103800.0,103790.0,0.78967663]
[1747136946925,0.19267822,103800.0,103790.0,1.19931119]
[1747136948415,0.19267822,103800.0,103790.0,1.18967663]
[1747136950755,0.19941676,103810.0,103800.0,0.19267822]
[1747136950965,0.0192668,103800.0,103790.0,1.4170264]
[1747136951164,0.01926642,103800.0,103790.0,1.4170264]
[1747136951371,0.02889996,103800.0,103790.0,1.4170264]
[1747136951580,0.0260199,103820.0,103810.0,0.20229255]
[1747136951818,0.22829305,103820.0,103810.0,0.41304]
[1747136952026,0.23366128,103820.0,103810.0,0.57379045]
[1747136952227,0.24906128,103820.0,103810.0,0.57379045]
[1747136952446,0.24230501,103820.0,103810.0,0.57379045]
[1747136952894,0.24239831,103820.0,103810.0,0.57379045]
[1747136953975,0.24439831,103820.0,103810.0,0.57379045]
[1747136954191,0.24739831,103820.0,103810.0,0.57379045]
[1747136954593,0.24739831,103820.0,103810.0,0.58382632]
[1747136956541,0.24739831,103820.0,103810.0,0.78611887]
[1747136956762,0.23776645,103820.0,103810.0,0.78611887]
[1747136957225,0.02435665,103820.0,103810.0,1.17788381]
[1747136957448,0.24589261,103820.0,103810.0,1.17788399]
[1747136957671,0.24589261,103820.0,103810.0,1.14538399]
[1747136957672,0.23626139,103820.0,103810.0,1.14538399]
[1747136957884,0.2246299,103820.0,103810.0,1.14538399]
[1747136958070,0.2216299,103820.0,103810.0,1.14538399]
[1747136958483,0.2671223,103820.0,103810.0,0.96536842]
[1747136958704,0.27259071,103820.0,103810.0,1.13575166]
[1747136958922,0.27259071,103820.0,103810.0,1.14538436]
[1747136959357,0.22809831,103820.0,103810.0,1.14538436]
[1747136959982,0.22809831,103820.0,103810.0,1.15501697]
[1747136960198,0.24319831,103820.0,103810.0,1.15501697]
[1747136960853,0.24319831,103820.0,103810.0,1.56076939]
[1747136962190,0.05055721,103820.0,103810.0,1.56076939]
[1747136962395,0.24319831,103820.0,103810.0,1.56076939]
[1747136962590,0.24319831,103820.0,103810.0,1.57040172]
[1747136962800,0.24319831,103820.0,103810.0,1.5704019]
[1747136964037,0.24319831,103820.0,103810.0,1.57040143]
[1747136964460,0.24319831,103820.0,103810.0,1.56076901]
[1747136964670,0.24319831,103820.0,103810.0,1.54150389]
[1747136964865,0.22809831,103820.0,103810.0,1.5511365]
[1747136966075,0.22809831,103820.0,103810.0,1.54150389]
[1747136966292,0.24449831,103820.0,103810.0,1.54150389]
[1747136967208,0.24449831,103820.0,103810.0,1.5511365]
[1747136968305,0.24449831,103820.0,103810.0,1.54150389]
[1747136969543,0.24449831,103820.0,103810.0,1.5511365]
[1747136974520,0.24449831,103820.0,103810.0,1.56076901]
[1747136975441,0.24449831,103820.0,103810.0,1.36130436]
[1747136975926,0.24449831,103820.0,103810.0,1.35167185]
[1747136976348,0.24449831,103820.0,103810.0,1.36130436]
[1747136978637,0.03545675,103820.0,103810.0,1.37093678]
[1747136978847,0.23772981,103820.0,103810.0,1.37093632]
[1747136979056,0.22262981,103820.0,103810.0,1.37093632]
[1747136979281,0.23226186,103820.0,103810.0,1.37093632]
[1747136979531,0.22839785,103820.0,103810.0,1.36130399]
[1747136979728,0.22839785,103820.0,103810.0,1.35167157]
[1747136979955,0.24429785,103820.0,103810.0,1.35167157]
[1747136982489,0.27027603,103820.0,103810.0,1.35167157]
[1747136983101,0.27027603,103820.0,103810.0,1.34203952]
[1747136983367,0.23897603,103820.0,103810.0,1.35167222]
[1747136983962,0.21299785,103820.0,103810.0,1.35167222]
[1747136984385,0.22939785,103820.0,103810.0,1.35167222]
[1747136984586,0.22939785,103820.0,103810.0,1.36130483]
[1747136986815,0.22939785,103820.0,103810.0,1.37093725]
[1747136987011,0.23902981,103820.0,103810.0,1.3709366]
[1747136987242,0.24866186,103820.0,103810.0,1.3709366]
[1747136987436,0.27699058,103820.0,103810.0,1.3709366]
[1747136987570,0.26059058,103820.0,103810.0,1.3709366]
[1747136988192,0.27649058,103820.0,103810.0,1.36130427]
[1747136988405,0.27649058,103820.0,103810.0,1.3709366]
[1747136988622,0.27649058,103820.0,103810.0,1.36130427]
[1747136989697,0.29239058,103820.0,103810.0,1.36130427]
[1747136990195,0.28275899,103820.0,103810.0,1.35167185]
[1747136991654,0.25443027,103820.0,103810.0,1.35167185]
[1747136993310,0.24479841,103820.0,103810.0,1.33240654]
[1747136993525,0.24479841,103820.0,103810.0,1.34203924]
[1747136995780,0.24479841,103820.0,103810.0,0.94203924]
[1747136997357,0.24479841,103820.0,103810.0,0.95167185]
[1747136999644,0.28874215,103820.0,103810.0,0.95167185]
[1747136999867,0.28874215,103820.0,103810.0,1.35167185]
[1747137000076,0.28874215,103820.0,103810.0,0.95167185]
[1747137000491,0.28874215,103820.0,103810.0,1.33240654]
[1747137000923,0.23516645,103820.0,103810.0,0.01578829]
[1747137001142,0.3228438,103820.0,103810.0,0.00575242]
[1747137001783,0.32961755,103820.0,103810.0,0.00575242]
[1747137006232,0.490368,103820.0,103810.0,0.00575242]
[1747137006647,0.24394538,103800.0,103790.0,1.12263045]
[1747137007520,0.2589112,103800.0,103790.0,0.54576]
[1747137007967,0.2589112,103800.0,103790.0,0.55076]
[1747137008181,0.2589112,103800.0,103790.0,0.21076]
[1747137008602,0.2589112,103800.0,103790.0,0.20876]
[1747137009014,0.2599112,103800.0,103790.0,0.20576]
[1747137010111,0.2599112,103800.0,103790.0,0.21564727]
[1747137010329,0.2599112,103800.0,103790.0,0.22131912]
[1747137012599,0.24494538,103800.0,103790.0,0.22131912]
[1747137012806,0.24494538,103800.0,103790.0,0.38206957]
[1747137015431,0.24494538,103800.0,103790.0,0.58440119]
[1747137015631,0.22567822,103800.0,103790.0,0.58440119]
[1747137022625,0.22567822,103800.0,103790.0,0.34663713]
[1747137022836,0.22567822,103800.0,103790.0,0.35136713]
[1747137023807,0.26818865,103800.0,103790.0,0.35136713]
[1747137024644,0.26818865,103800.0,103790.0,0.02411688]
[1747137024887,0.26818865,103800.0,103790.0,0.36792929]
[1747137025805,0.22567822,103800.0,103790.0,0.36792929]
[1747137026876,0.22567822,103800.0,103790.0,0.1752325]
[1747137027747,0.72233604,103800.0,103790.0,0.00473]
[1747137027975,1.07233604,103800.0,103790.0,0.00473]
[1747137028203,0.24380667,103770.0,103760.0,0.002]
[1747137028418,0.5455204,103770.0,103760.0,0.002]
[1747137028877,0.55228003,103770.0,103760.0,0.002]
[1747137029107,0.55227729,103770.0,103760.0,0.002]
[1747137029551,0.56228706,103770.0,103760.0,0.002]
[1747137030488,0.57228706,103770.0,103760.0,0.002]
[1747137030671,0.91228706,103770.0,103760.0,0.003]
[1747137030894,1.26915751,103770.0,103760.0,0.003]
[1747137031119,0.90539083,103760.0,103750.0,0.015]
[1747137031339,1.2285889,103760.0,103750.0,0.015]
[1747137031553,1.23534579,103760.0,103750.0,0.015]
[1747137031765,1.23534579,103760.0,103750.0,0.01920574]
[1747137032670,1.25388664,103760.0,103750.0,0.01920574]
[1747137033464,1.25688664,103760.0,103750.0,0.01920574]
[1747137034408,0.01,103750.0,103740.0,0.017]
[1747137034647,0.83802858,103730.0,103720.0,0.002]
[1747137034879,1.34509798,103730.0,103720.0,0.002]
[1747137035364,1.35185487,103730.0,103720.0,0.00635866]
[1747137036052,1.35185487,103730.0,103720.0,0.00661386]
[1747137036539,0.93209487,103730.0,103720.0,0.00661386]
[1747137036770,1.2137641,103730.0,103720.0,0.00661386]
[1747137037028,1.45920427,103730.0,103720.0,0.00661386]
[1747137037272,1.21571408,103730.0,103720.0,0.00661386]
[1747137037508,1.45915425,103730.0,103720.0,0.00661386]
[1747137037736,1.46315425,103730.0,103720.0,0.00661386]
[1747137037938,1.46515425,103730.0,103720.0,0.00661386]
[1747137038489,1.46315425,103730.0,103720.0,0.00661386]
[1747137038740,1.46715425,103730.0,103720.0,0.00761386]
[1747137038961,1.22171408,103730.0,103720.0,0.00761386]
[1747137039191,1.46715425,103730.0,103720.0,0.00761386]
[1747137042379,1.05735425,103730.0,103720.0,0.00761386]
[1747137042591,0.65651408,103730.0,103720.0,0.00761386]
[1747137042797,0.35460468,103730.0,103720.0,0.00761386]
[1747137042997,0.31739781,103730.0,103720.0,0.00761386]
[1747137049003,0.59503798,103730.0,103720.0,0.00761386]
[1747137049550,0.34959781,103730.0,103720.0,0.00761386]
[1747137049779,0.44690721,103730.0,103720.0,0.00761386]
[1747137051267,0.69234738,103730.0,103720.0,0.00761386]
[1747137051470,0.69904823,103730.0,103720.0,0.00761386]
[1747137053119,1.03904823,103730.0,103720.0,0.00761386]
[1747137053343,1.25360823,103730.0,103720.0,0.00761386]
[1747137054110,1.24360823,103730.0,103720.0,0.00761386]
[1747137054339,0.56093866,103730.0,103720.0,0.00761386]
[1747137056207,0.52873866,103730.0,103720.0,0.00761386]
[1747137056899,0.54443866,103730.0,103720.0,0.00761386]
[1747137058804,0.35639866,103730.0,103720.0,0.00761386]
[1747137062579,0.35639866,103730.0,103720.0,0.01062741]
[1747137063001,0.45370806,103730.0,103720.0,0.01062741]
[1747137063216,0.45370806,103730.0,103720.0,0.01053892]
[1747137065243,0.32409866,103730.0,103720.0,0.25589062]
[1747137065559,0.32409866,103730.0,103720.0,0.01045045]
[1747137067320,0.35539866,103730.0,103720.0,0.01045045]
[1747137067739,0.80527883,103730.0,103720.0,0.01045045]
[1747137067979,0.83233707,103730.0,103720.0,0.01045045]
[1747137068197,0.92964647,103730.0,103720.0,0.01045045]
[1747137068626,0.92964647,103730.0,103720.0,0.0074369]
[1747137069184,0.92964647,103730.0,103720.0,0.00893142]
[1747137069450,0.6842063,103730.0,103720.0,0.00893142]
[1747137074692,0.92964647,103730.0,103720.0,0.00893142]
[1747137075527,1.27964647,103730.0,103720.0,0.00893142]
[1747137075730,1.28964647,103730.0,103720.0,0.00893142]
[1747137078796,1.29418732,103730.0,103720.0,0.00893142]
[1747137080441,1.29418732,103730.0,103720.0,0.01048911]
[1747137080668,2.22902749,103730.0,103720.0,0.01048911]
[1747137080889,1.77914732,103730.0,103720.0,0.00307824]